bitfinex/quotes_ETHUSD_20260225
["timestamp","ask_amount","ask_price","bid_price","bid_amount"]
[1772030592216,1.26968738,1972.1,1971.2,7.25987963]
[1772030592532,2.57854193,1971.9,1970.9,7.26005133]
[1772030592826,1.26968738,1972.1,1970.9,7.26005133]
[1772030593137,2.57854193,1972.0,1970.9,7.26005133]
[1772030593932,1.26781276,1971.9,1970.9,7.26005133]
[1772030594312,1.26781276,1971.9,1970.9,5.99161665]
[1772030594502,1.26781276,1971.9,1970.9,7.26006123]
[1772030595822,5.07285564,1972.1,1971.2,7.25987963]
[1772030596008,0.002,1972.1,1971.3,5.99161665]
[1772030597411,3.60591059,1971.8,1970.8,1.26948495]
[1772030597618,2.606,1971.7,1970.8,0.001]
[1772030597820,8.92339722,1971.7,1970.8,0.001]
[1772030598020,1.26800568,1971.6,1970.8,0.001]
[1772030598737,1.26800568,1971.6,1970.8,5.99261665]
[1772030599106,3.87394137,1971.7,1970.8,5.99261665]
[1772030599523,2.606,1971.7,1970.8,5.99261665]
[1772030599922,3.87394585,1971.7,1971.0,5.99161665]
[1772030601335,5.07129581,1971.9,1971.0,5.99161665]
[1772030601336,1.26981714,1971.9,1971.0,5.99161665]
[1772030602138,0.002,1971.9,1971.1,7.25994397]
[1772030603535,0.002,1971.9,1971.3,5.99161665]
[1772030604120,0.002,1971.9,1971.4,1.26813432]
[1772030604809,0.002,1971.9,1971.4,7.25975097]
[1772030605826,0.002,1972.1,1971.6,5.87875582]
[1772030606028,0.002,1972.1,1971.7,1.26794137]
[1772030606225,0.002,1972.1,1971.7,7.14669719]
[1772030606428,0.002,1972.1,1971.1,9.65875582]
[1772030606633,0.002,1972.1,1971.1,8.25275582]
[1772030606838,3.60591059,1971.9,1970.9,0.001]
[1772030607018,6.01889011,1971.8,1970.9,0.001]
[1772030607952,3.60591059,1971.9,1970.9,0.001]
[1772030607953,0.18685624,1971.9,1970.9,7.14820377]
[1772030608117,3.60591059,1971.6,1970.9,0.001]
[1772030608317,6.01889011,1971.2,1970.7,0.001]
[1772030608546,3.60591059,1971.0,1970.5,0.001]
[1772030608841,2.78285624,1971.2,1970.0,9.48466641]
[1772030609230,6.01889011,1971.1,1970.0,5.87875582]
[1772030610231,1.26839167,1971.0,1970.1,1.26897111]
[1772030610436,1.26839167,1971.0,1970.1,7.72914656]
[1772030610946,9.86835889,1970.9,1969.8,6.46017545]
[1772030611243,6.44930454,1970.8,1969.7,2.374]
[1772030611557,9.86835889,1970.4,1969.2,6.46017545]
[1772030611717,2.595,1970.3,1969.2,6.46017545]
[1772030611917,6.2624483,1970.0,1968.7,7.73004897]
[1772030612120,1.26909995,1969.9,1968.7,7.73004897]
[1772030612320,5.07600563,1970.1,1968.9,6.46017545]
[1772030612539,5.07600563,1970.1,1968.7,1.26987352]
[1772030612540,5.82066183,1970.0,1968.7,1.26987352]
[1772030612714,3.79276683,1970.0,1968.7,1.26987352]
[1772030612925,0.18685624,1970.0,1968.7,7.73004897]
[1772030613828,3.79276683,1970.0,1968.7,7.73004897]
[1772030614222,1.26909995,1969.9,1968.7,7.73004897]
[1772030615615,6.2624483,1970.2,1968.7,7.73004897]
[1772030615825,5.07606883,1970.1,1969.0,6.46017545]
[1772030616417,5.07606883,1970.1,1969.1,1.26961556]
[1772030616620,5.07606883,1970.1,1969.1,7.72979101]
[1772030617023,1.26897111,1970.1,1969.1,7.72979101]
[1772030617338,11.13733,1970.1,1969.0,6.46017545]
[1772030617663,2.594,1970.8,1969.8,6.46017545]
[1772030618231,6.19991059,1970.8,1969.8,6.46017545]
[1772030618464,1.26858476,1970.7,1969.9,1.26909995]
[1772030619844,3.86257076,1970.8,1969.9,1.26909995]
[1772030620664,2.594,1970.8,1969.9,1.26909995]
[1772030620865,1.26826298,1971.2,1970.2,6.46017545]
[1772030621064,2.593,1971.2,1970.5,6.46017545]
[1772030621273,2.593,1971.6,1970.5,6.46017545]
[1772030621458,3.81101249,1971.6,1970.5,6.46017545]
[1772030621643,3.8619164,1971.8,1970.5,6.46017545]
[1772030621968,3.60591059,1971.6,1970.5,6.46017545]
[1772030622180,6.2624483,1971.5,1970.1,9.0282136]
[1772030622340,1.26819865,1971.3,1970.2,1.2689067]
[1772030622540,2.592,1971.2,1970.2,7.72908215]
[1772030623341,2.592,1971.2,1970.1,3.83696086]
[1772030623660,8.8544483,1971.2,1970.1,3.83696086]
[1772030624164,8.8044483,1971.2,1970.1,3.83696086]
[1772030624572,1.26832732,1971.1,1970.2,6.46017545]
[1772030625075,11.13668621,1971.1,1969.8,10.10029796]
[1772030625574,11.13668621,1971.1,1969.4,7.7295976]
[1772030625575,9.86835889,1970.8,1969.4,7.7295976]
[1772030625776,0.18685624,1971.0,1969.0,7.72985549]
[1772030625777,6.44930454,1970.4,1969.0,7.72985549]
[1772030626648,1.2688423,1970.3,1969.0,7.72985549]
[1772030626982,2.591,1970.2,1969.0,7.72985549]
[1772030627976,2.591,1970.2,1969.3,6.46017545]
[1772030628770,1.26897111,1970.1,1969.4,1.26942215]
[1772030628958,3.80994456,1970.2,1969.4,1.26942215]
[1772030629275,1.26882723,1970.4,1969.4,7.7295976]
[1772030629477,1.26882723,1970.4,1969.9,0.001]
[1772030629654,1.21882723,1970.4,1969.9,0.001]
[1772030630165,1.21882723,1970.4,1969.8,0.001]
[1772030630669,1.16882723,1970.4,1969.8,0.001]
[1772030630978,5.07493299,1970.5,1969.8,0.001]
[1772030631176,9.86835889,1970.4,1969.1,7.72979101]
[1772030631676,5.07493299,1970.5,1969.4,6.46017545]
[1772030631850,2.59,1970.6,1969.4,6.46017545]
[1772030632047,1.26871352,1970.5,1969.4,6.46017545]
[1772030632348,3.85868702,1970.6,1969.6,10.06608604]
[1772030632542,1.26845603,1970.9,1969.7,6.46017545]
[1772030632750,2.589,1970.7,1969.7,6.46017545]
[1772030633358,1.26864914,1970.6,1969.7,7.72935684]
[1772030635471,1.26864914,1970.6,1969.7,11.33526743]
[1772030635779,1.26864914,1970.6,1969.8,5.99162304]
[1772030637384,1.26864914,1970.6,1969.9,1.26909995]
[1772030637771,5.98028516,1970.5,1969.4,5.99162304]
[1772030638952,5.98028516,1970.5,1969.5,5.99162304]
[1772030639392,1.26877791,1970.4,1969.6,1.26929325]
[1772030639884,1.26876543,1970.5,1969.6,1.26929325]
[1772030640061,1.26876543,1970.5,1969.5,7.26093181]
[1772030640483,1.26876543,1970.5,1969.5,10.8668424]
[1772030640680,1.26869206,1970.6,1969.6,5.99162304]
[1772030640989,3.8576379,1970.7,1969.9,5.99162304]
[1772030641489,3.8576379,1970.7,1970.0,1.26903553]
[1772030642886,3.8576379,1970.7,1969.9,7.26067481]
[1772030643297,3.8576379,1970.7,1969.9,5.99162304]
[1772030643581,3.8576379,1970.7,1969.7,7.26081567]
[1772030643777,5.06460185,1970.6,1969.6,1.26928939]
[1772030643955,5.06460185,1970.6,1969.6,0.001]
[1772030644154,5.06660185,1970.6,1969.6,0.001]
[1772030644580,5.06660185,1970.6,1969.6,5.99262304]
[1772030644782,0.002,1970.6,1969.6,5.99262304]
[1772030645485,6.33344415,1970.3,1969.6,0.001]
[1772030645780,6.33344415,1970.3,1969.2,5.99162304]
[1772030645781,2.585,1970.2,1969.2,5.99162304]
[1772030646466,7.64960185,1970.2,1969.2,5.99162304]
[1772030647583,3.85395846,1970.2,1969.3,7.26110965]
[1772030647789,1.26871352,1970.5,1969.6,5.99162304]
[1772030648083,1.27067775,1970.6,1969.6,5.99162304]
[1772030649285,5.06460185,1970.5,1969.5,2.365]
[1772030649581,1.26877791,1970.4,1969.3,7.26110965]
[1772030650084,2.585,1970.3,1969.3,7.26110965]
[1772030651779,0.002,1970.6,1969.3,7.26110965]
[1772030651976,5.06660185,1970.6,1969.3,7.26110965]
[1772030652591,0.002,1970.6,1969.8,9.59753363]
[1772030652759,0.002,1970.6,1969.9,5.99162304]
[1772030653166,0.002,1970.6,1969.7,2.366]
[1772030653395,5.06660185,1970.6,1969.7,2.366]
[1772030654103,1.26871352,1970.5,1969.7,3.6351928]
[1772030654690,1.26871352,1970.5,1969.7,3.63520979]
[1772030655509,1.26871352,1970.5,1969.7,9.62683283]
[1772030655900,1.26871352,1970.5,1969.6,1.26925486]
[1772030656102,9.93922596,1970.5,1969.4,5.99162304]
[1772030656418,9.93922596,1970.5,1969.4,7.2609941]
[1772030657296,1.26871352,1970.5,1969.4,7.2609941]
[1772030657893,6.33331537,1970.5,1969.6,0.001]
[1772030658407,6.33531537,1970.5,1969.6,0.001]
[1772030659416,1.27071352,1970.5,1969.6,5.99262304]
[1772030659591,1.27071632,1970.5,1969.8,5.99162304]
[1772030659991,1.27073838,1970.5,1969.8,5.99162304]
[1772030660393,0.002,1970.5,1969.9,1.26909995]
[1772030661026,0.002,1970.5,1969.8,7.26077483]
[1772030662294,0.002,1970.5,1969.9,8.57166483]
[1772030662597,0.002,1970.5,1970.0,5.99162304]
[1772030662798,0.002,1970.5,1969.8,1.26915179]
[1772030664104,0.002,1970.5,1969.8,7.26077483]
[1772030664406,0.002,1970.5,1970.1,1.26897111]
[1772030667223,0.002,1970.6,1970.2,6.21993469]
[1772030667425,0.002,1971.0,1970.3,2.58004179]
[1772030667616,1.2704093,1971.0,1970.4,6.21993469]
[1772030668021,1.27039562,1971.0,1970.4,6.21993469]
[1772030668209,1.27039562,1971.0,1970.1,12.51295444]
[1772030668531,0.002,1971.0,1970.6,8.79997648]
[1772030668825,0.002,1971.0,1970.1,6.29301975]
[1772030668826,0.002,1971.1,1970.8,8.79997648]
[1772030669326,0.002,1971.1,1970.5,8.58993469]
[1772030669525,0.002,1971.1,1970.5,9.85863948]
[1772030669892,0.002,1971.1,1970.5,2.37]
[1772030670298,0.002,1971.1,1970.2,10.08223021]
[1772030670701,0.002,1971.1,1970.4,6.44236059]
[1772030671535,0.002,1971.1,1970.5,1.26871352]
[1772030673124,0.002,1971.1,1970.2,3.63986061]
[1772030673428,0.002,1971.1,1970.2,10.0822212]
[1772030673629,0.002,1971.1,1970.2,6.44236059]
[1772030673630,0.002,1971.0,1970.2,6.44236059]
[1772030673836,7.64864364,1971.0,1970.0,1.26899666]
[1772030674510,0.002,1971.0,1970.2,9.02240238]
[1772030674715,0.002,1971.0,1970.3,6.44236059]
[1772030675615,0.002,1971.0,1970.4,1.26877791]
[1772030675816,0.002,1971.0,1970.6,6.44236059]
[1772030676017,0.002,1971.1,1970.6,6.44236059]
[1772030676219,0.002,1971.3,1970.9,6.44236059]
[1772030676413,0.002,1971.3,1970.9,8.81336059]
[1772030676820,1.27023344,1971.3,1970.9,2.371]
[1772030677729,0.002,1971.3,1970.7,1.26858476]
[1772030678625,0.002,1971.3,1970.7,7.71094535]
[1772030678818,0.002,1971.3,1970.8,6.44236059]
[1772030679014,0.002,1971.3,1970.6,3.63960752]
[1772030680443,0.002,1971.3,1970.6,3.63964258]
[1772030681150,0.002,1971.3,1970.6,2.371]
[1772030681622,0.002,1971.3,1970.4,1.26875194]
[1772030681623,5.07060185,1971.3,1970.4,1.26875194]
[1772030681950,5.07060185,1971.3,1970.3,3.6397948]
[1772030682149,5.06860185,1971.1,1970.3,3.63983439]
[1772030682316,1.26839167,1971.0,1970.3,3.63983439]
[1772030682518,1.26826298,1971.2,1970.3,10.08219498]
[1772030683559,0.002,1971.3,1970.5,6.44236059]
[1772030683762,0.002,1971.3,1970.4,2.58004179]
[1772030683922,1.27021039,1971.3,1970.7,6.44236059]
[1772030684115,0.002,1971.3,1970.7,6.44236059]
[1772030684322,0.002,1971.3,1970.7,8.81336059]
[1772030684550,0.002,1971.3,1970.8,7.71088098]
[1772030686124,0.002,1971.3,1970.7,3.6395324]
[1772030686449,0.002,1971.2,1970.7,3.6395324]
[1772030686754,0.002,1971.2,1970.7,10.08189299]
[1772030687134,0.002,1971.2,1970.7,3.6395324]
[1772030687329,5.06860185,1971.5,1970.7,2.371]
[1772030687854,5.06860185,1971.3,1970.5,1.26971063]
[1772030688230,2.55,1971.4,1970.5,1.26971063]
[1772030688551,2.55,1971.4,1970.5,7.71207122]
[1772030688724,3.81813949,1971.4,1970.5,7.71207122]
[1772030689057,3.81813949,1971.4,1970.5,0.001]
[1772030689058,5.06860185,1971.3,1970.5,0.001]
[1772030689426,5.06860185,1971.3,1970.5,1.26971314]
[1772030689725,5.06860185,1971.3,1970.5,0.001]
[1772030690248,5.06860185,1971.3,1970.5,1.26970606]
[1772030690455,5.06860185,1971.3,1970.5,0.001]
[1772030690754,8.91690662,1971.2,1970.5,0.001]
[1772030691324,8.86690662,1971.2,1970.5,0.001]
[1772030692549,5.06860185,1971.1,1970.5,0.001]
[1772030693529,1.26839167,1971.0,1970.5,0.001]
[1772030695735,1.2682974,1971.2,1970.5,5.98684107]
[1772030696757,5.07291965,1971.3,1970.5,5.98684107]
[1772030696758,1.26824843,1971.3,1970.5,5.98684107]
[1772030697658,1.26824843,1971.3,1970.6,1.26864914]
[1772030698838,8.88678205,1971.4,1970.6,7.25449021]
[1772030699249,8.88678205,1971.4,1970.6,7.25549021]
[1772030699546,0.002,1971.2,1970.6,7.25549021]
[1772030700158,0.0012,1971.2,1970.6,7.25549021]
[1772030700364,0.0012,1971.2,1970.6,7.25548335]
[1772030700856,0.0012,1971.2,1970.7,5.98584107]
[1772030701157,0.0012,1971.2,1970.6,1.26964228]
[1772030701334,0.0012,1971.2,1970.6,0.001]
[1772030701861,1.26946298,1971.2,1970.6,0.001]
[1772030702381,0.002,1971.9,1970.8,5.98584107]
[1772030702530,0.002,1971.9,1971.1,5.98584107]
[1772030702731,0.002,1971.9,1971.2,5.98584107]
[1772030702929,0.002,1972.1,1971.6,5.98584107]
[1772030703325,1.26968907,1972.1,1971.3,5.98584107]
[1772030703552,1.26888907,1972.1,1971.4,5.98584107]
[1772030703858,0.0012,1972.1,1971.5,7.25391106]
[1772030704463,0.0012,1972.1,1971.7,5.98584107]
[1772030704648,0.0012,1972.1,1971.4,9.8339922]
[1772030704856,0.0012,1972.1,1971.1,5.98584107]
[1772030705058,0.0012,1972.1,1971.2,5.98584107]
[1772030705858,0.0012,1972.1,1971.4,5.98584107]
[1772030706635,0.0012,1972.1,1971.7,5.98584107]
[1772030706956,0.002,1972.2,1971.7,5.98584107]
[1772030707159,0.002,1972.4,1971.8,5.98584107]
[1772030707749,0.002,1972.4,1971.9,7.25365383]
[1772030707950,0.002,1972.4,1971.6,5.07178803]
[1772030707951,0.002,1972.4,1971.7,5.07167695]
[1772030708160,0.002,1972.4,1971.7,11.05751802]
[1772030708462,0.002,1972.4,1971.9,5.98584107]
[1772030708647,0.002,1972.4,1972.0,5.98584107]
[1772030708850,0.002,1972.7,1972.1,5.98584107]
[1772030709040,0.002,1972.7,1972.4,0.002]
[1772030709246,0.002,1972.7,1972.0,5.98584107]
[1772030709640,0.002,1972.7,1972.1,2.58004179]
[1772030709842,0.002,1972.7,1972.3,1.26755564]
[1772030710043,0.002,1972.7,1972.4,5.98584107]
[1772030710448,0.002,1973.1,1972.6,5.98584107]
[1772030710647,0.002,1973.1,1972.7,8.35284107]
[1772030710964,0.002,1973.1,1972.3,1.26755564]
[1772030711140,0.002,1973.1,1972.4,5.98584107]
[1772030711485,0.002,1973.1,1972.7,8.56588286]
[1772030711767,0.002,1973.4,1972.9,8.56588286]
[1772030711959,0.002,1973.4,1973.0,1.26710593]
[1772030712642,0.002,1973.4,1972.9,12.20000461]
[1772030713164,0.002,1973.4,1972.9,2.367]
[1772030713573,0.002,1973.4,1972.9,8.56588286]
[1772030713873,0.002,1973.4,1972.9,5.98584107]
[1772030714242,0.002,1973.3,1972.5,7.25322325]
[1772030714444,0.002,1973.3,1972.8,5.98584107]
[1772030714644,0.002,1973.3,1972.9,8.56588286]
[1772030714945,0.002,1973.6,1973.2,5.98584107]
[1772030715373,0.002,1973.7,1973.3,8.56588286]
[1772030715675,1.26614332,1974.5,1973.5,8.56588286]
[1772030715849,1.26614332,1974.5,1973.5,10.93488286]
[1772030716062,6.34074517,1974.5,1973.3,2.58004179]
[1772030716247,5.07460185,1974.2,1973.2,7.68084107]
[1772030716441,5.07460185,1974.2,1973.2,10.26088286]
[1772030716647,6.29074517,1974.5,1973.5,5.98584107]
[1772030716949,6.29074517,1974.5,1973.4,2.58004179]
[1772030716950,1.21614332,1974.5,1973.8,8.56588286]
[1772030717357,1.21614332,1974.5,1973.8,5.98584107]
[1772030717865,5.07460185,1974.3,1973.2,8.35384107]
[1772030718062,5.07460185,1974.1,1973.2,9.62080958]
[1772030718569,5.07460185,1974.1,1973.2,12.20085137]
[1772030718770,1.26633573,1974.2,1973.5,5.98584107]
[1772030719208,1.26633573,1974.2,1973.2,8.35384107]
[1772030719209,6.34093758,1974.2,1973.2,8.35384107]
[1772030719483,6.34093758,1974.2,1973.2,2.368]
[1772030719484,5.07460185,1974.0,1973.2,2.368]
[1772030719848,5.07460185,1974.0,1973.2,3.63497478]
[1772030720054,1.26633573,1974.2,1973.3,5.98584107]
[1772030721858,1.26633573,1974.2,1973.5,9.58455258]
[1772030722052,5.06461146,1974.5,1973.6,1.26672071]
[1772030722781,1.26614332,1974.5,1973.6,7.25256178]
[1772030723494,1.26614332,1974.5,1973.8,5.98584107]
[1772030723993,10.1384784,1974.8,1973.8,5.98584107]
[1772030723994,1.26601509,1974.7,1973.9,1.26652819]
[1772030724215,1.26582278,1975.0,1974.1,5.98584107]
[1772030724597,1.26582278,1975.0,1974.3,5.98584107]
[1772030724764,1.26563053,1975.3,1974.3,5.98584107]
[1772030724968,6.34023238,1975.3,1974.3,5.98584107]
[1772030725567,5.07460185,1975.1,1974.2,2.364]
[1772030725867,6.34023238,1975.3,1974.3,6.08934229]
[1772030726071,6.34023238,1975.3,1974.4,1.26620745]
[1772030726296,6.34023238,1975.3,1974.4,7.35474974]
[1772030726505,1.26560705,1975.4,1974.4,7.35474974]
[1772030726671,1.26560705,1975.4,1974.7,6.08934229]
[1772030727709,0.002,1974.5,1974.3,1.26623209]
[1772030727876,6.3402089,1975.4,1974.3,1.26623209]
[1772030727877,0.002,1974.7,1974.3,1.26623209]
[1772030728069,6.3402089,1975.4,1974.4,11.68403229]
[1772030728268,1.26560705,1975.4,1974.4,6.08934229]
[1772030728985,1.26560705,1975.4,1974.7,6.08934229]
[1772030729397,1.26560705,1975.4,1974.4,6.08934229]
[1772030730306,8.67531336,1975.5,1974.4,7.35554405]
[1772030730525,5.07660185,1975.5,1974.4,7.35554405]
[1772030730723,5.07580185,1975.5,1974.4,6.08934229]
[1772030731034,5.07580185,1975.2,1974.2,2.363]
[1772030731194,2.523,1975.1,1974.3,6.44111778]
[1772030731720,2.523,1975.1,1974.2,10.07044018]
[1772030732017,2.523,1975.1,1974.3,6.44111778]
[1772030732199,1.26582278,1975.0,1974.3,7.70735328]
[1772030732401,1.26582278,1975.0,1974.3,6.44111778]
[1772030732614,1.26582278,1975.0,1974.3,7.70738857]
[1772030732796,1.26582278,1975.0,1974.3,6.44111778]
[1772030732995,1.26582278,1975.0,1974.3,7.7073814]
[1772030733319,6.49827944,1975.7,1974.6,6.44111778]
[1772030733490,6.49827944,1975.7,1974.8,6.44111778]
[1772030734396,6.49827944,1975.7,1974.8,7.70705761]
[1772030735325,1.42247759,1975.7,1974.8,7.70705761]
[1772030736326,1.42247759,1975.7,1974.8,7.70706334]
[1772030736530,1.42167759,1975.7,1974.8,7.70706334]
[1772030737723,0.1570515,1975.7,1975.1,6.44111778]
[1772030738027,1.42242778,1975.7,1975.1,6.44111778]
[1772030738222,1.42242778,1975.7,1974.8,7.70706334]
[1772030738396,6.49822963,1975.7,1974.8,6.44111778]
[1772030738599,6.49822963,1975.7,1974.5,6.44111778]
[1772030738600,5.07580185,1975.5,1974.5,6.44111778]
[1772030738811,5.07580185,1975.5,1974.5,7.70725366]
[1772030739618,1.42242778,1975.7,1974.7,6.44111778]
[1772030739823,1.42242778,1975.7,1974.9,6.44111778]
[1772030740321,0.002,1975.6,1974.9,6.44111778]
[1772030740522,0.002,1975.6,1975.0,7.70694056]
[1772030741303,5.07580185,1976.5,1975.2,6.44111778]
[1772030741512,3.042,1977.5,1976.0,10.03982929]
[1772030741513,5.07780185,1977.4,1976.0,10.03982929]
[1772030741827,5.07780185,1977.1,1975.8,2.36]
[1772030742221,5.07780185,1976.9,1975.8,2.36]
[1772030742608,8.85567202,1976.8,1975.8,2.36]
[1772030742826,5.07780185,1976.5,1975.2,6.44111778]
[1772030743124,5.07780185,1976.4,1975.2,6.44111778]
[1772030743328,5.07780185,1976.3,1975.2,6.44111778]
[1772030743527,5.07780185,1976.3,1975.0,7.70689507]
[1772030743717,7.59080185,1976.3,1975.1,10.03982929]
[1772030744106,7.59080185,1976.3,1975.2,6.44111778]
[1772030744425,6.21656598,1976.2,1975.2,3.55318695]
[1772030744725,1.26511816,1976.1,1975.3,1.26563053]
[1772030744901,1.26511816,1976.1,1975.3,7.70674831]
[1772030745618,1.26510536,1976.2,1975.3,7.70674831]
[1772030746628,1.26510536,1976.2,1975.4,6.44111778]
[1772030746828,5.0600782,1976.3,1975.5,1.2655024]
[1772030747418,2.51,1976.6,1975.6,10.03982929]
[1772030747623,5.05897307,1976.7,1975.7,6.44111778]
[1772030748215,5.05897307,1976.7,1975.8,6.44111778]
[1772030748721,1.26473415,1976.7,1975.8,6.44111778]
[1772030748919,1.26473415,1976.7,1976.0,6.44111778]
[1772030749314,5.05832311,1977.0,1976.0,6.44111778]
[1772030749528,5.05750494,1977.3,1976.3,6.44111778]
[1772030749737,6.21656598,1977.7,1976.8,3.59871151]
[1772030749937,1.2640495,1977.8,1976.8,12.39682929]
[1772030750122,1.2640495,1977.8,1976.9,6.44111778]
[1772030750530,1.2632495,1977.8,1976.9,6.44111778]
[1772030750939,7.47981548,1977.8,1976.8,2.357]
[1772030751324,7.47981548,1977.8,1976.8,3.62166749]
[1772030751520,3.7712495,1977.8,1977.0,6.44111778]
[1772030752033,3.7712495,1977.8,1976.8,2.357]
[1772030752233,9.98781548,1977.8,1976.8,2.357]
[1772030752422,6.21656598,1977.6,1976.5,6.44111778]
[1772030752630,2.508,1977.6,1976.5,6.44111778]
[1772030752815,1.2642225,1977.5,1976.5,7.70593724]
[1772030753017,1.2642225,1977.5,1976.5,7.70596358]
[1772030753543,1.26420216,1977.6,1976.7,6.44111778]
[1772030753712,0.002,1976.9,1976.7,6.44111778]
[1772030754043,7.56415429,1977.8,1976.6,3.59871151]
[1772030754044,1.26396683,1977.9,1976.9,6.44111778]
[1772030754342,1.26382355,1978.2,1977.2,6.44111778]
[1772030754537,1.26382355,1978.2,1977.2,8.79711778]
[1772030755243,1.26382355,1978.2,1977.3,7.70546815]
[1772030755438,11.42563539,1978.6,1977.3,11.30417966]
[1772030755741,6.371526,1978.5,1977.3,7.70546815]
[1772030756826,8.878526,1978.5,1977.3,7.70546815]
[1772030757427,1.26364739,1978.4,1977.3,7.70546815]
[1772030758750,6.371526,1978.2,1976.9,5.91857574]
[1772030758938,9.97023751,1978.0,1976.9,7.18315607]
[1772030759133,6.371526,1978.0,1976.9,7.18315607]
[1772030759448,8.877526,1978.3,1977.4,3.59871151]
[1772030759765,1.26377514,1978.2,1977.3,5.91857574]
[1772030760463,7.63530114,1978.2,1977.2,3.62138977]
[1772030760661,7.63530114,1978.2,1977.2,2.357]
[1772030760963,7.63530114,1978.2,1976.9,5.91857574]
[1772030761269,6.371526,1978.1,1976.8,2.356]
[1772030761571,1.26390293,1978.0,1977.0,9.51728725]
[1772030761841,1.26390293,1978.0,1976.8,3.62066531]
[1772030761842,6.371526,1977.9,1976.8,3.62066531]
[1772030762547,6.371526,1977.9,1976.8,3.62066658]
[1772030763446,6.371526,1977.9,1976.8,2.356]
[1772030763649,7.6357485,1977.5,1976.4,8.27457574]
[1772030763822,7.6357485,1977.5,1976.1,7.18366215]
[1772030763823,6.371526,1977.3,1976.1,7.18366215]
[1772030765345,6.371526,1977.3,1976.3,5.91857574]
[1772030765554,6.371526,1977.3,1976.1,1.26508641]
[1772030765757,7.63594032,1977.2,1976.1,1.26508641]
[1772030766058,7.63594032,1977.2,1976.2,16.406035]
[1772030766354,1.26441432,1977.2,1976.4,3.59871151]
[1772030766535,1.26441432,1977.2,1976.4,11.87328725]
[1772030766728,1.26440212,1977.3,1976.4,11.87328725]
[1772030766957,7.63592812,1977.3,1976.4,2.356]
[1772030767844,7.63592812,1977.3,1976.1,7.18466215]
[1772030767845,7.63592812,1977.3,1976.1,5.91957574]
[1772030768031,6.371526,1977.2,1976.1,0.001]
[1772030769457,6.371526,1976.9,1976.0,0.001]
[1772030769657,8.879526,1977.2,1976.0,7.1847339]
[1772030769954,7.63600427,1977.1,1976.0,0.001]
[1772030770458,6.371526,1976.9,1976.0,0.001]
[1772030770833,6.371526,1976.6,1976.0,0.001]
[1772030771174,6.371526,1976.4,1975.8,0.001]
[1772030771858,1.26499013,1976.3,1975.8,0.001]
[1772030773879,7.63651613,1976.3,1975.8,0.001]
[1772030774183,1.26499013,1976.3,1975.8,0.001]
[1772030774331,3.77097414,1976.4,1975.8,0.001]
[1772030774658,6.371526,1977.0,1975.8,5.91957574]
[1772030774873,1.2646062,1976.9,1976.1,5.91857574]
[1772030775229,5.0584248,1977.0,1976.1,5.91857574]
[1772030775434,1.2646062,1976.9,1976.1,5.91857574]
[1772030775643,5.05800961,1977.1,1976.1,5.91857574]
[1772030775842,5.05800961,1977.1,1976.2,7.18362988]
[1772030776161,1.26446211,1977.2,1976.2,5.91857574]
[1772030776842,8.877526,1977.1,1976.2,5.91857574]
[1772030777240,6.371526,1977.0,1976.0,5.91857574]
[1772030778040,1.2646062,1976.9,1976.1,1.26511816]
[1772030778543,1.2646062,1976.9,1976.1,7.1836939]
[1772030778747,2.506,1977.0,1976.1,7.1836939]
[1772030779467,5.06835216,1977.0,1976.0,7.18373994]
[1772030779643,2.506,1977.0,1976.0,7.18373994]
[1772030780265,1.2646062,1976.9,1976.0,7.18373994]
[1772030780558,2.505,1977.2,1976.3,5.91857574]
[1772030780765,2.507,1977.2,1976.4,2.56235216]
[1772030781061,2.507,1977.2,1976.3,5.91857574]
[1772030781964,0.002,1977.2,1976.6,8.4809279]
[1772030782269,0.002,1977.2,1976.8,8.4809279]
[1772030782477,0.002,1977.2,1976.8,5.91857574]
[1772030782871,0.002,1977.2,1976.9,5.91857574]
[1772030784053,0.002,1977.3,1977.0,1.26454223]
[1772030784283,0.002,1977.7,1977.1,5.91857574]
[1772030784572,0.002,1977.7,1977.2,8.4809279]
[1772030784777,0.002,1977.7,1977.3,5.91857574]
[1772030786078,0.002,1977.7,1977.3,7.08510599]
[1772030786975,0.002,1977.7,1977.3,7.04786211]
[1772030787169,0.002,1977.7,1977.3,7.0478653]
[1772030787481,0.002,1977.7,1977.3,7.04785678]
[1772030787701,6.20665795,1978.6,1977.5,2.56235216]
[1772030787899,7.46992222,1979.0,1978.0,2.56235216]
[1772030788048,7.46992222,1979.0,1978.1,1.26383903]
[1772030788443,1.26326427,1979.0,1978.1,7.1225712]
[1772030788672,1.26326427,1979.0,1978.2,8.42108433]
[1772030788979,5.05264657,1979.2,1978.4,8.42108433]
[1772030789157,5.05264657,1979.2,1978.4,5.85873217]
[1772030789556,1.26313662,1979.2,1978.5,5.91209428]
[1772030789865,2.71940366,1979.7,1978.5,5.91209428]
[1772030790071,2.71940366,1979.7,1979.0,2.56235216]
[1772030790072,1.41991628,1979.7,1979.0,2.56235216]
[1772030790369,1.26243498,1980.3,1979.6,2.56235216]
[1772030790585,6.03825617,1980.5,1979.1,1.26320044]
[1772030790586,1.26211631,1980.8,1979.8,8.47444644]
[1772030790788,1.26211631,1980.8,1980.0,2.56235216]
[1772030791171,7.30037248,1980.8,1980.1,0.43173637]
[1772030791386,6.03825617,1980.5,1979.4,2.56235216]
[1772030791589,8.53325617,1980.4,1979.4,2.56235216]
[1772030791890,2.56235216,1979.8,1978.7,2.351]
[1772030792101,6.03825617,1979.7,1978.7,2.351]
[1772030792261,7.30113756,1979.6,1978.7,2.351]
[1772030792467,8.60060833,1979.2,1978.0,2.35]
[1772030792661,6.03825617,1979.2,1978.1,2.56235216]
[1772030793065,6.03825617,1979.2,1978.3,2.56235216]
[1772030793265,7.30113756,1979.6,1978.3,8.47444644]
[1772030793497,7.30113756,1979.6,1978.7,2.56235216]
[1772030793695,7.30113756,1979.6,1978.4,5.91209428]
[1772030793696,7.30113756,1979.6,1978.5,4.91135216]
[1772030793868,7.30113756,1979.6,1978.6,2.56235216]
[1772030794069,1.26288139,1979.6,1978.8,2.56235216]
[1772030794270,11.08697971,1980.7,1979.4,11.0367986]
[1772030794465,1.26218003,1980.7,1979.9,2.56235216]
[1772030794997,1.26218003,1980.7,1979.7,2.56235216]
[1772030795369,1.26218003,1980.7,1979.6,2.56235216]
[1772030795594,1.26418003,1980.7,1979.6,2.56235216]
[1772030795995,3.76018003,1980.7,1979.6,2.56235216]
[1772030796694,2.56235216,1980.5,1979.3,3.61202764]